[Event "XI Paracin Festival 2018"]
[Site "Paracin"]
[Date "2018.07.10"]
[Round "6"]
[White "McPhillips, Joseph"]
[Black "Uzumcu, Ahmet Utku"]
[Result "1-0"]
[ECO "A00"]
[WhiteElo "2402"]
[BlackElo "2261"]
[Annotator "NA"]
[PlyCount "77"]
[EventDate "2018.07.06"]
[EventType "swiss"]
[EventCountry "SRB"]
[SourceTitle "playchess.com"]
[Source "ChessBase"]
[SourceQuality "1"]
[TimeControl "5400+30"]

1. b4 {[%emt 0:05:30]} Nf6 {[%emt 0:00:12]} 2. Bb2 {[%emt 0:00:07]} e6 {[%emt 0:00:39]} 3. a3 {[%emt 0:05:23]} d5 {[%emt 0:00:26]} 4. e3 {[%emt 0:01:24]} c6 {[%emt 0:01:26]} 5. f4 {[%emt 0:02:48]} Nbd7 {[%emt 0:00:42]} 6. Nf3 {[%emt 0:00:32]} Bd6 {[%emt 0:00:52]} 7. c4 {[%emt 0:03:20]} O-O {[%emt 0:03:57]} 8. Be2 {[%emt 0:05:03]} a5 {[%emt 0:15:12]} 9. b5 {[%emt 0:19:19]} Re8 {[%emt 0:15:52]} 10. O-O {[%emt 0:04:15]} c5 {[%emt 0:07:06]} 11. Ne5 {[%emt 0:01:14]} Nb6 {[%emt 0:11:25]} 12. d3 {[%emt 0:02:57]} Nfd7 {[%emt 0:05:10]} 13. Nd2 {[%emt 0:02:56]} f6 {[%emt 0:08:43]} 14. Nef3 {[%emt 0:01:28]} d4 {[%emt 0:04:20]} 15. Ne4 {[%emt 0:01:42]} Qc7 {[%emt 0:01:33]} 16. Nxd6 {[%emt 0:01:45]} Qxd6 {[%emt 0:00:04]} 17. exd4 {[%emt 0:00:19]} Qxf4 {[%emt 0:01:48]} 18. dxc5 {[%emt 0:03:19]} Nxc5 {[%emt 0:02:28]} 19. Kh1 {[%emt 0:00:03]} Qc7 {[%emt 0:01:06]} 20. Rc1 {[%emt 0:03:18]} e5 {[%emt 0:04:13]} 21. d4 {[%emt 0:00:02]} exd4 {[%emt 0:00:54]} 22. Nxd4 {[%emt 0:00:12]} Bd7 {[%emt 0:01:58]} 23. Bh5 {[%emt 0:03:41]} Rf8 {[%emt 0:01:16]} 24. Ba1 {[%emt 0:06:48]} Rad8 {[%emt 0:01:43]} 25. Qe2 {[%emt 0:01:13]} Bc8 {[%emt 0:02:58]} 26. Rce1 {[%emt 0:01:29]} a4 {[%emt 0:03:02]} 27. Bc3 {[%emt 0:00:35]} Rd6 {[%emt 0:01:39]} 28. Rf3 {[%emt 0:03:38]} Be6 {[%emt 0:01:19]} 29. Rg3 {[%emt 0:02:25]} Bxc4 {[%emt 0:01:16]} 30. Qc2 {[%emt 0:00:59]} Bd3 {[%emt 0:00:35]} 31. Rxd3 {[%emt 0:02:06]} Nxd3 {[%emt 0:00:02]} 32. Qxd3 {[%emt 0:00:04]} Qc4 {[%emt 0:00:55]} 33. Qxc4+ {[%emt 0:04:58]} Nxc4 {[%emt 0:00:02]} 34. Bb4 {[%emt 0:00:15]} Rxd4 {[%emt 0:00:46]} 35. Bxf8 {[%emt 0:00:03]} g6 {[%emt 0:01:11]} 36. Bc5 {[%emt 0:00:04]} Rd5 {[%emt 0:00:20]} 37. Be2 {[%emt 0:00:07]} Ne5 {[%emt 0:00:27]} 38. Bb4 {[%emt 0:00:34]} Kf7 {[%emt 0:00:14]} 39. h3 {[%emt 0:00:45]} 1-0

[Event "XI Paracin Festival 2018"]
[Site "Paracin"]
[Date "2018.07.10"]
[Round "6"]
[White "Rahul Srivatshav P"]
[Black "Savic, Miodrag R"]
[Result "0-1"]
[ECO "A40"]
[WhiteElo "2397"]
[BlackElo "2541"]
[Annotator "ChessBase"]
[PlyCount "74"]
[EventDate "2018.07.06"]
[EventType "swiss"]
[EventCountry "SRB"]
[SourceTitle "playchess.com"]
[Source "ChessBase"]
[SourceQuality "1"]
[TimeControl "5400+30"]

1. d4 {[%emt 0:00:55]} Nf6 {[%emt 0:00:00]} 2. c4 {[%emt 0:01:11]} e6 {[%emt 0:00:00]} 3. g3 {[%emt 0:00:02]} Nc6 {[%emt 0:04:44]} 4. Bg2 {[%emt 0:01:24]} Bb4+ {[%emt 0:00:20]} 5. Bd2 {[%emt 0:00:19]} a5 {[%emt 0:06:11]} 6. Nf3 {[%emt 0:04:45]} d5 {[%emt 0:06:26]} 7. Qc2 {[%emt 0:00:40]} O-O {[%emt 0:05:43]} 8. O-O {[%emt 0:00:33]} h6 {[%emt 0:02:22]} 9. a3 {[%emt 0:06:59]} Be7 {[%emt 0:10:18]} 10. e3 {[%emt 0:09:09]} Ne4 {[%emt 0:03:39]} 11. Nc3 {[%emt 0:06:04]} Nxc3 {[%emt 0:13:52]} 12. Qxc3 {[%emt 0:05:22]} a4 {[%emt 0:00:45]} 13. Rac1 {[%emt 0:08:05]} Bd7 {[%emt 0:02:46]} 14. cxd5 {[%emt 0:05:18]} exd5 {[%emt 0:00:01]} 15. Ne1 {[%emt 0:03:06]} Na5 {[%emt 0:03:25]} 16. Qxc7 {[%emt 0:05:19]} Nb3 {[%emt 0:00:36]} 17. Qxd8 {[%emt 0:03:51]} Rfxd8 {[%emt 0:00:02]} 18. Rd1 {[%emt 0:00:24]} Bb5 {[%emt 0:00:09]} 19. Bc3 {[%emt 0:00:43]} Bxf1 {[%emt 0:02:17]} 20. Kxf1 {[%emt 0:00:14]} Rac8 {[%emt 0:00:13]} 21. Nc2 {[%emt 0:02:34]} f5 {[%emt 0:05:38]} 22. Ke2 {[%emt 0:00:57]} Kf7 {[%emt 0:00:18]} 23. f4 {[%emt 0:06:59]} Ke6 {[%emt 0:00:19]} 24. Kf3 {[%emt 0:04:21]} Rd6 {[%emt 0:10:35]} 25. Bf1 {[%emt 0:01:45]} Rb6 {[%emt 0:00:08]} 26. Bd3 {[%emt 0:02:39]} g5 {[%emt 0:00:21]} 27. h3 {[%emt 0:00:33]} h5 {[%emt 0:05:14]} 28. Rh1 {[%emt 0:03:07]} Rg8 {[%emt 0:02:14]} 29. Rg1 {[%emt 0:04:01]} g4+ {[%emt 0:00:27]} 30. hxg4 {[%emt 0:00:51]} hxg4+ {[%emt 0:00:32]} 31. Kg2 {[%emt 0:00:17]} Rh8 {[%emt 0:00:02]} 32. Rd1 {[%emt 0:02:11]} Rh5 {[%emt 0:00:25]} 33. Rb1 {[%emt 0:01:15]} Kf7 {[%emt 0:00:58]} 34. Rh1 {[%emt 0:00:06]} Rxh1 {[%emt 0:00:15]} 35. Kxh1 {[%emt 0:00:11]} Ke6 {[%emt 0:00:03]} 36. Bb4 {[%emt 0:04:04]} Nc1 {[%emt 0:00:54]} 37. Bf1 {[%emt 0:00:15]} Na2 {[%emt 0:01:17]} 0-1

[Event "XI Paracin Festival 2018"]
[Site "Paracin"]
[Date "2018.07.10"]
[Round "6"]
[White "Atakisi, Umut"]
[Black "Ivic, Matija"]
[Result "1/2-1/2"]
[ECO "B27"]
[WhiteElo "2390"]
[BlackElo "2245"]
[Annotator "NA"]
[PlyCount "58"]
[EventDate "2018.07.06"]
[EventType "swiss"]
[EventCountry "SRB"]
[SourceTitle "playchess.com"]
[Source "ChessBase"]
[SourceQuality "1"]
[TimeControl "5400+30"]

1. e4 {[%emt 0:07:44]} c5 {[%emt 0:00:55]} 2. Nf3 {[%emt 0:00:04]} g6 {[%emt 0:00:07]} 3. d4 {[%emt 0:02:45]} cxd4 {[%emt 0:00:04]} 4. Qxd4 {[%emt 0:00:03]} Nf6 {[%emt 0:00:06]} 5. Nc3 {[%emt 0:00:10]} Nc6 {[%emt 0:00:18]} 6. Qa4 {[%emt 0:00:09]} d6 {[%emt 0:00:19]} 7. e5 {[%emt 0:00:14]} dxe5 {[%emt 0:00:04]} 8. Nxe5 {[%emt 0:00:05]} Bg7 {[%emt 0:00:04]} 9. Bb5 {[%emt 0:06:20]} O-O {[%emt 0:00:26]} 10. Nxc6 {[%emt 0:01:10]} bxc6 {[%emt 0:00:05]} 11. Bxc6 {[%emt 0:00:13]} Rb8 {[%emt 0:00:43]} 12. O-O {[%emt 0:02:35]} Qc7 {[%emt 0:00:55]} 13. Bf4 {[%emt 0:10:15]} e5 {[%emt 0:00:30]} 14. Bg5 {[%emt 0:00:19]} Rxb2 {[%emt 0:02:47]} 15. Bxf6 {[%emt 0:03:18]} Bxf6 {[%emt 0:01:12]} 16. Nd5 {[%emt 0:00:41]} Qd6 {[%emt 0:00:09]} 17. Nxf6+ {[%emt 0:00:35]} Qxf6 {[%emt 0:00:06]} 18. Bd5 {[%emt 0:00:51]} Qa6 {[%emt 0:06:00]} 19. Qxa6 {[%emt 0:10:12]} Bxa6 {[%emt 0:00:09]} 20. Rfe1 {[%emt 0:05:32]} Rxc2 {[%emt 0:01:27]} 21. Rxe5 {[%emt 0:00:28]} Rfc8 {[%emt 0:04:16]} 22. Bb3 {[%emt 0:02:28]} Rc1+ {[%emt 0:00:22]} 23. Re1 {[%emt 0:00:03]} Rxa1 {[%emt 0:00:16]} 24. Rxa1 {[%emt 0:00:07]} Rc3 {[%emt 0:00:20]} 25. h3 {[%emt 0:01:50]} Bc4 {[%emt 0:00:22]} 26. Rb1 {[%emt 0:00:19]} Bxb3 {[%emt 0:01:40]} 27. axb3 {[%emt 0:00:11]} a5 {[%emt 0:01:26]} 28. Ra1 {[%emt 0:00:07]} Rxb3 {[%emt 0:00:07]} 29. Rxa5 {[%emt 0:00:03]} Kg7 {[%emt 0:00:59]} 1/2-1/2

[Event "XI Paracin Festival 2018"]
[Site "Paracin"]
[Date "2018.07.10"]
[Round "6"]
[White "Brankovic, Dejan"]
[Black "Vujacic, Borivoje"]
[Result "1/2-1/2"]
[ECO "B30"]
[WhiteElo "2377"]
[BlackElo "2213"]
[Annotator "NA"]
[PlyCount "65"]
[EventDate "2018.07.06"]
[EventType "swiss"]
[EventCountry "SRB"]
[SourceTitle "playchess.com"]
[Source "ChessBase"]
[SourceQuality "1"]
[TimeControl "5400+30"]

1. e4 {[%emt 0:00:00]} c5 {[%emt 0:00:00]} 2. Nf3 {[%emt 0:00:00]} Nc6 {[%emt 0:00:00]} 3. Bb5 {[%emt 0:00:39]} d6 {[%emt 0:00:48]} 4. O-O {[%emt 0:01:02]} Bd7 {[%emt 0:00:24]} 5. Re1 {[%emt 0:05:53]} a6 {[%emt 0:01:10]} 6. Bxc6 {[%emt 0:00:41]} Bxc6 {[%emt 0:00:10]} 7. d4 {[%emt 0:00:21]} cxd4 {[%emt 0:04:48]} 8. Qxd4 {[%emt 0:09:08]} e5 {[%emt 0:01:42]} 9. Qd3 {[%emt 0:01:54]} h6 {[%emt 0:00:15]} 10. c4 {[%emt 0:06:14]} Nf6 {[%emt 0:01:47]} 11. Nc3 {[%emt 0:00:09]} Be7 {[%emt 0:00:42]} 12. Nh4 {[%emt 0:03:01]} Bd7 {[%emt 0:08:38]} 13. b3 {[%emt 0:05:22]} O-O {[%emt 0:02:25]} 14. Nf5 {[%emt 0:08:07]} Bxf5 {[%emt 0:01:28]} 15. exf5 {[%emt 0:00:03]} Qd7 {[%emt 0:13:10]} 16. a4 {[%emt 0:18:21]} Rfe8 {[%emt 0:05:50]} 17. Bb2 {[%emt 0:09:27]} Bd8 {[%emt 0:05:30]} 18. a5 {[%emt 0:08:38]} Rc8 {[%emt 0:03:47]} 19. h3 {[%emt 0:02:51]} Rc6 {[%emt 0:04:21]} 20. g4 {[%emt 0:01:07]} b6 {[%emt 0:00:53]} 21. Nd5 {[%emt 0:02:56]} Nxd5 {[%emt 0:05:56]} 22. Qxd5 {[%emt 0:01:28]} Rc5 {[%emt 0:01:19]} 23. Qd3 {[%emt 0:00:13]} b5 {[%emt 0:04:32]} 24. Ba3 {[%emt 0:04:31]} bxc4 {[%emt 0:03:06]} 25. bxc4 {[%emt 0:00:05]} Rc6 {[%emt 0:01:53]} 26. Qd5 {[%emt 0:01:27]} Qc8 {[%emt 0:07:02]} 27. Rac1 {[%emt 0:01:40]} Bg5 {[%emt 0:02:44]} 28. Rc3 {[%emt 0:00:10]} Qc7 {[%emt 0:00:46]} 29. Re4 Rc8 {[%emt 0:01:40]} 30. Rd3 {[%emt 0:02:23]} Rxc4 31. Bxd6 Rc1+ 32. Kg2 Qc2 33. Rb4 1/2-1/2

[Event "XI Paracin Festival 2018"]
[Site "Paracin"]
[Date "2018.07.10"]
[Round "6"]
[White "Martic, Ivan"]
[Black "Parnali, S Dharia"]
[Result "1/2-1/2"]
[ECO "C44"]
[WhiteElo "2375"]
[BlackElo "2170"]
[Annotator "NA"]
[PlyCount "46"]
[EventDate "2018.07.06"]
[EventType "swiss"]
[EventCountry "SRB"]
[SourceTitle "playchess.com"]
[Source "ChessBase"]
[SourceQuality "1"]
[TimeControl "5400+30"]

1. e4 {[%emt 0:00:00]} e5 {[%emt 0:00:00]} 2. Nf3 {[%emt 0:00:00]} Nc6 {[%emt 0:00:00]} 3. d3 {[%emt 0:00:19]} Bc5 {[%emt 0:01:57]} 4. c3 {[%emt 0:00:13]} Nf6 {[%emt 0:00:20]} 5. Be2 {[%emt 0:00:55]} d5 {[%emt 0:00:42]} 6. Nbd2 {[%emt 0:00:29]} Be6 {[%emt 0:01:19]} 7. b4 {[%emt 0:01:22]} Bd6 {[%emt 0:00:19]} 8. O-O {[%emt 0:01:15]} O-O {[%emt 0:00:24]} 9. a3 {[%emt 0:02:25]} Ne7 {[%emt 0:02:31]} 10. exd5 {[%emt 0:10:20]} Bxd5 {[%emt 0:05:39]} 11. c4 {[%emt 0:06:15]} Bxf3 {[%emt 0:00:06]} 12. Bxf3 {[%emt 0:00:20]} c6 {[%emt 0:00:05]} 13. Bb2 {[%emt 0:01:43]} Nf5 {[%emt 0:00:59]} 14. g3 {[%emt 0:03:17]} Bc7 {[%emt 0:01:54]} 15. Nb3 {[%emt 0:01:27]} Re8 {[%emt 0:11:34]} 16. Re1 {[%emt 0:01:35]} Qd6 {[%emt 0:03:08]} 17. Qc2 {[%emt 0:02:25]} h5 {[%emt 0:04:43]} 18. Rad1 {[%emt 0:03:15]} h4 {[%emt 0:01:23]} 19. c5 {[%emt 0:14:02]} Qd7 {[%emt 0:00:46]} 20. Qc4 {[%emt 0:01:19]} Rad8 {[%emt 0:10:14]} 21. a4 {[%emt 0:01:56]} a6 {[%emt 0:00:55]} 22. Bg2 {[%emt 0:17:48]} hxg3 {[%emt 0:01:36]} 23. hxg3 {[%emt 0:00:11]} Nd5 {[%emt 0:04:02]} 1/2-1/2

[Event "XI Paracin Festival 2018"]
[Site "Paracin"]
[Date "2018.07.10"]
[Round "6"]
[White "Nestorovic, Dejan"]
[Black "Radovanovic, Nikola"]
[Result "1/2-1/2"]
[ECO "E61"]
[WhiteElo "2341"]
[BlackElo "2425"]
[Annotator "NA"]
[PlyCount "44"]
[EventDate "2018.07.06"]
[EventType "swiss"]
[EventCountry "SRB"]
[SourceTitle "playchess.com"]
[Source "ChessBase"]
[SourceQuality "1"]
[TimeControl "5400+30"]

1. d4 {[%emt 0:00:00]} Nf6 {[%emt 0:01:19]} 2. c4 {[%emt 0:00:00]} g6 {[%emt 0:00:07]} 3. Nc3 {[%emt 0:00:00]} Bg7 {[%emt 0:00:06]} 4. Nf3 {[%emt 0:00:09]} O-O {[%emt 0:00:20]} 5. Bg5 {[%emt 0:00:09]} c5 {[%emt 0:01:02]} 6. d5 {[%emt 0:00:11]} h6 {[%emt 0:00:31]} 7. Bf4 {[%emt 0:00:42]} d6 {[%emt 0:00:08]} 8. Qc1 {[%emt 0:01:18]} g5 {[%emt 0:05:54]} 9. Bd2 {[%emt 0:00:30]} Nh7 {[%emt 0:19:30]} 10. h4 {[%emt 0:14:31]} g4 {[%emt 0:01:19]} 11. Ng1 {[%emt 0:00:08]} h5 {[%emt 0:02:05]} 12. e4 {[%emt 0:00:09]} e6 {[%emt 0:18:21]} 13. Bd3 {[%emt 0:17:31]} Nd7 {[%emt 0:09:00]} 14. Qc2 {[%emt 0:07:12]} Ne5 {[%emt 0:00:57]} 15. O-O-O {[%emt 0:02:46]} Nxd3+ {[%emt 0:05:47]} 16. Qxd3 {[%emt 0:00:03]} e5 {[%emt 0:00:14]} 17. Nge2 {[%emt 0:02:14]} f5 {[%emt 0:01:33]} 18. f3 {[%emt 0:04:13]} f4 {[%emt 0:01:50]} 19. fxg4 {[%emt 0:16:36]} Bxg4 {[%emt 0:04:16]} 20. Rdf1 {[%emt 0:01:28]} Qd7 {[%emt 0:02:53]} 21. Kb1 {[%emt 0:01:31]} a6 {[%emt 0:00:57]} 22. Ng1 {[%emt 0:08:28]} Rab8 {[%emt 0:04:39]} 1/2-1/2

[Event "XI Paracin Festival 2018"]
[Site "Paracin"]
[Date "2018.07.10"]
[Round "6"]
[White "Kulkarni, Chinmay"]
[Black "Kosic, Dragan"]
[Result "0-1"]
[ECO "C11"]
[WhiteElo "2336"]
[BlackElo "2463"]
[Annotator "ChessBase"]
[PlyCount "66"]
[EventDate "2018.07.06"]
[EventType "swiss"]
[EventCountry "SRB"]
[SourceTitle "playchess.com"]
[Source "ChessBase"]
[SourceQuality "1"]
[TimeControl "5400+30"]

1. e4 {[%emt 0:02:15]} e6 {[%emt 0:01:26]} 2. d4 {[%emt 0:00:12]} d5 {[%emt 0:00:06]} 3. Nc3 {[%emt 0:00:11]} Nf6 {[%emt 0:00:08]} 4. e5 {[%emt 0:00:13]} Nfd7 {[%emt 0:00:06]} 5. Nce2 {[%emt 0:00:16]} c5 {[%emt 0:00:22]} 6. c3 {[%emt 0:00:12]} Nc6 {[%emt 0:00:07]} 7. Nf3 {[%emt 0:00:10]} Qb6 {[%emt 0:05:14]} 8. a3 {[%emt 0:00:14]} f6 {[%emt 0:00:43]} 9. Nf4 {[%emt 0:01:33]} fxe5 {[%emt 0:01:41]} 10. Nxe6 {[%emt 0:03:36]} cxd4 {[%emt 0:01:48]} 11. cxd4 {[%emt 0:03:39]} Nf6 {[%emt 0:07:23]} 12. Nxf8 {[%emt 0:15:13]} Rxf8 {[%emt 0:00:09]} 13. dxe5 {[%emt 0:03:37]} Ng4 {[%emt 0:02:21]} 14. Qe2 {[%emt 0:01:39]} Rf5 {[%emt 0:00:51]} 15. b4 {[%emt 0:15:43]} Be6 {[%emt 0:07:34]} 16. Bb2 {[%emt 0:04:50]} Rf4 {[%emt 0:00:18]} 17. O-O-O {[%emt 0:07:44]} Nxf2 {[%emt 0:06:09]} 18. Ng5 {[%emt 0:02:39]} Rc4+ {[%emt 0:06:44]} 19. Kb1 {[%emt 0:00:22]} Bf5+ {[%emt 0:13:31]} 20. Ka1 {[%emt 0:02:45]} Rg4 {[%emt 0:12:49]} 21. h4 {[%emt 0:05:57]} Nxh1 {[%emt 0:00:47]} 22. Qf3 {[%emt 0:00:04]} Ne7 {[%emt 0:03:51]} 23. e6 {[%emt 0:02:19]} Ng3 {[%emt 0:07:43]} 24. Bd3 {[%emt 0:04:58]} Ne4 {[%emt 0:03:25]} 25. Nf7 {[%emt 0:05:47]} Qxe6 {[%emt 0:01:09]} 26. Ne5 {[%emt 0:00:02]} Rg3 {[%emt 0:01:16]} 27. Bb5+ {[%emt 0:02:27]} Kf8 {[%emt 0:01:38]} 28. Qh5 {[%emt 0:01:29]} Nf6 {[%emt 0:02:14]} 29. Qe2 {[%emt 0:01:00]} a6 {[%emt 0:02:01]} 30. Ba4 {[%emt 0:01:54]} b5 {[%emt 0:00:59]} 31. Bc2 {[%emt 0:00:20]} Bxc2 {[%emt 0:02:05]} 32. Qxc2 {[%emt 0:00:15]} Rc8 {[%emt 0:00:20]} 33. Qe2 {[%emt 0:00:12]} Kg8 0-1

[Event "XI Paracin Festival 2018"]
[Site "Paracin"]
[Date "2018.07.10"]
[Round "6"]
[White "Budisavljevic, Luka"]
[Black "Peycheva, Gergana"]
[Result "1/2-1/2"]
[ECO "D05"]
[WhiteElo "2324"]
[BlackElo "2157"]
[Annotator "NA"]
[PlyCount "90"]
[EventDate "2018.07.06"]
[EventType "swiss"]
[EventCountry "SRB"]
[SourceTitle "playchess.com"]
[Source "ChessBase"]
[SourceQuality "1"]
[TimeControl "5400+30"]

1. d4 {[%emt 0:00:00]} Nf6 {[%emt 0:00:00]} 2. Nf3 {[%emt 0:00:00]} e6 {[%emt 0:00:13]} 3. e3 {[%emt 0:00:04]} d5 {[%emt 0:00:35]} 4. Bd3 {[%emt 0:00:08]} c5 {[%emt 0:00:43]} 5. b3 {[%emt 0:00:09]} Nc6 {[%emt 0:00:51]} 6. O-O {[%emt 0:00:07]} b6 {[%emt 0:01:26]} 7. Bb2 {[%emt 0:02:04]} Bb7 {[%emt 0:01:00]} 8. Nbd2 {[%emt 0:01:39]} Bd6 {[%emt 0:01:30]} 9. a3 {[%emt 0:01:00]} O-O {[%emt 0:02:19]} 10. Ne5 {[%emt 0:01:49]} Rc8 {[%emt 0:02:23]} 11. f4 {[%emt 0:01:33]} Ne7 {[%emt 0:04:03]} 12. Rc1 {[%emt 0:03:44]} Ne4 {[%emt 0:02:56]} 13. Bxe4 {[%emt 0:14:55]} dxe4 {[%emt 0:00:11]} 14. Ndc4 {[%emt 0:00:08]} Nf5 {[%emt 0:07:56]} 15. Re1 {[%emt 0:19:57]} f6 {[%emt 0:06:40]} 16. dxc5 {[%emt 0:13:49]} Rxc5 {[%emt 0:06:04]} 17. Nxd6 {[%emt 0:02:06]} Nxd6 {[%emt 0:01:02]} 18. Ng4 {[%emt 0:00:44]} Rd5 {[%emt 0:05:41]} 19. Qe2 {[%emt 0:00:26]} Nf5 {[%emt 0:00:35]} 20. Red1 {[%emt 0:03:20]} Rf7 {[%emt 0:06:06]} 21. c4 {[%emt 0:07:18]} Ba6 {[%emt 0:05:17]} 22. Qe1 {[%emt 0:04:36]} Rdd7 {[%emt 0:04:38]} 23. Nf2 {[%emt 0:01:29]} Bb7 {[%emt 0:01:42]} 24. a4 {[%emt 0:01:28]} Bc6 {[%emt 0:07:02]} 25. Ba3 {[%emt 0:01:38]} e5 {[%emt 0:03:50]} 26. fxe5 {[%emt 0:01:31]} fxe5 {[%emt 0:00:04]} 27. Rxd7 {[%emt 0:06:58]} Rxd7 {[%emt 0:02:01]} 28. Rd1 {[%emt 0:00:39]} Rxd1 {[%emt 0:05:29]} 29. Qxd1 {[%emt 0:00:13]} Qg5 {[%emt 0:00:18]} 30. Ng4 {[%emt 0:07:19]} h5 {[%emt 0:04:41]} 31. Nxe5 {[%emt 0:01:13]} Nh4 {[%emt 0:01:56]} 32. g3 {[%emt 0:01:31]} Nf3+ {[%emt 0:02:07]} 33. Nxf3 {[%emt 0:00:10]} Qxe3+ {[%emt 0:00:15]} 34. Kf1 {[%emt 0:01:03]} exf3 {[%emt 0:01:08]} 35. Qe1 {[%emt 0:00:57]} Qd3+ {[%emt 0:00:09]} 36. Kg1 {[%emt 0:00:14]} Qd4+ {[%emt 0:02:49]} 37. Kf1 {[%emt 0:00:10]} Bd7 {[%emt 0:04:27]} 38. g4 {[%emt 0:01:42]} Bxg4 {[%emt 0:00:47]} 39. Qe8+ {[%emt 0:01:03]} Kh7 {[%emt 0:00:01]} 40. Qf7 {[%emt 0:00:32]} Qa1+ {[%emt 0:01:24]} 41. Kf2 {[%emt 0:00:02]} Qxa3 {[%emt 0:00:32]} 42. h3 {[%emt 0:00:45]} Qb2+ {[%emt 0:00:44]} 43. Kg3 {[%emt 0:00:26]} Qe5+ {[%emt 0:00:05]} 44. Kf2 {[%emt 0:00:45]} h4 {[%emt 0:00:47]} 45. Kg1 {[%emt 0:00:35]} Qe7 1/2-1/2

[Event "XI Paracin Festival 2018"]
[Site "Paracin"]
[Date "2018.07.10"]
[Round "6"]
[White "Konaplev, Anton"]
[Black "Eswaran, Ashritha"]
[Result "1/2-1/2"]
[ECO "E46"]
[WhiteElo "2316"]
[BlackElo "2092"]
[Annotator "NA"]
[PlyCount "53"]
[EventDate "2018.07.06"]
[EventType "swiss"]
[EventCountry "SRB"]
[SourceTitle "playchess.com"]
[Source "ChessBase"]
[SourceQuality "1"]
[TimeControl "5400+30"]

1. d4 {[%emt 0:00:00]} Nf6 {[%emt 0:00:00]} 2. c4 {[%emt 0:00:00]} e6 {[%emt 0:00:00]} 3. Nc3 {[%emt 0:00:00]} Bb4 {[%emt 0:00:06]} 4. e3 {[%emt 0:00:06]} O-O {[%emt 0:00:46]} 5. Nge2 {[%emt 0:00:29]} Re8 {[%emt 0:01:36]} 6. a3 {[%emt 0:00:19]} Bf8 {[%emt 0:00:09]} 7. Ng3 {[%emt 0:00:38]} d5 {[%emt 0:01:52]} 8. Be2 {[%emt 0:01:40]} b6 {[%emt 0:04:19]} 9. O-O {[%emt 0:00:44]} Bb7 {[%emt 0:01:53]} 10. b4 {[%emt 0:00:23]} c6 {[%emt 0:02:08]} 11. Qc2 {[%emt 0:09:44]} Nbd7 {[%emt 0:06:47]} 12. Rd1 {[%emt 0:06:49]} Qc7 {[%emt 0:07:00]} 13. e4 {[%emt 0:05:03]} e5 {[%emt 0:10:04]} 14. Be3 {[%emt 0:08:20]} exd4 {[%emt 0:09:29]} 15. Bxd4 {[%emt 0:02:01]} dxe4 {[%emt 0:02:00]} 16. Bxf6 {[%emt 0:10:28]} Nxf6 {[%emt 0:00:24]} 17. Ncxe4 {[%emt 0:01:23]} Nxe4 {[%emt 0:10:04]} 18. Nxe4 {[%emt 0:00:22]} Qf4 {[%emt 0:00:45]} 19. Bf3 {[%emt 0:07:10]} c5 {[%emt 0:07:50]} 20. Ng5 {[%emt 0:03:39]} Qxg5 {[%emt 0:00:26]} 21. Bxb7 {[%emt 0:00:12]} Rad8 {[%emt 0:01:07]} 22. Bd5 {[%emt 0:07:05]} Bd6 {[%emt 0:04:54]} 23. Qd3 {[%emt 0:05:46]} Be5 {[%emt 0:03:51]} 24. Ra2 {[%emt 0:04:11]} Bd4 {[%emt 0:00:58]} 25. Re2 {[%emt 0:04:06]} Re7 {[%emt 0:02:20]} 26. Qf3 {[%emt 0:02:28]} Qf6 {[%emt 0:05:22]} 27. Qxf6 {[%emt 0:15:24]} 1/2-1/2

[Event "XI Paracin Festival 2018"]
[Site "Paracin"]
[Date "2018.07.10"]
[Round "6"]
[White "Savanovic, Vuk"]
[Black "Tomic, Aleksandar"]
[Result "1/2-1/2"]
[ECO "B43"]
[WhiteElo "2294"]
[BlackElo "2347"]
[Annotator "NA"]
[PlyCount "68"]
[EventDate "2018.07.06"]
[EventType "swiss"]
[EventCountry "SRB"]
[SourceTitle "playchess.com"]
[Source "ChessBase"]
[SourceQuality "1"]
[TimeControl "5400+30"]

1. e4 {[%emt 0:00:00]} c5 {[%emt 0:00:00]} 2. Nf3 {[%emt 0:00:00]} e6 {[%emt 0:00:07]} 3. d4 {[%emt 0:00:00]} cxd4 {[%emt 0:00:06]} 4. Nxd4 {[%emt 0:00:00]} a6 {[%emt 0:00:04]} 5. Nc3 {[%emt 0:00:03]} Qc7 {[%emt 0:00:10]} 6. Be3 {[%emt 0:00:14]} Nf6 {[%emt 0:00:28]} 7. a3 {[%emt 0:01:21]} b5 {[%emt 0:00:52]} 8. Bd3 {[%emt 0:00:41]} Bb7 {[%emt 0:01:03]} 9. O-O {[%emt 0:00:35]} d6 {[%emt 0:01:48]} 10. Qf3 {[%emt 0:02:06]} Nbd7 {[%emt 0:01:53]} 11. Qg3 {[%emt 0:05:15]} h5 {[%emt 0:02:19]} 12. f3 {[%emt 0:08:36]} Rc8 {[%emt 0:03:26]} 13. Rad1 {[%emt 0:02:49]} d5 {[%emt 0:03:24]} 14. Qxc7 {[%emt 0:03:54]} Rxc7 {[%emt 0:02:16]} 15. exd5 {[%emt 0:00:15]} Nxd5 {[%emt 0:00:28]} 16. Nxd5 {[%emt 0:00:07]} Bxd5 {[%emt 0:00:31]} 17. a4 {[%emt 0:02:39]} e5 {[%emt 0:41:55]} 18. Ne2 {[%emt 0:03:41]} bxa4 {[%emt 0:05:25]} 19. Nc3 {[%emt 0:05:58]} Bc4 {[%emt 0:02:20]} 20. Nxa4 {[%emt 0:01:15]} Bxd3 {[%emt 0:03:12]} 21. Rxd3 {[%emt 0:02:07]} Rxc2 {[%emt 0:11:04]} 22. Rfd1 {[%emt 0:00:38]} Rc7 {[%emt 0:00:13]} 23. Nb6 {[%emt 0:01:46]} Nxb6 {[%emt 0:00:53]} 24. Rd8+ {[%emt 0:03:49]} Ke7 {[%emt 0:01:20]} 25. Bxb6 {[%emt 0:00:07]} Rc6 {[%emt 0:00:22]} 26. Ba5 {[%emt 0:02:13]} Kf6 {[%emt 0:05:12]} 27. Kf1 {[%emt 0:00:40]} g6 {[%emt 0:02:35]} 28. Bc3 {[%emt 0:00:40]} Kf5 {[%emt 0:02:40]} 29. R1d7 {[%emt 0:04:01]} f6 {[%emt 0:04:21]} 30. Rf7 {[%emt 0:01:34]} Bg7 {[%emt 0:00:22]} 31. Rxh8 {[%emt 0:00:10]} Bxh8 {[%emt 0:00:02]} 32. Rh7 {[%emt 0:00:27]} Rc8 {[%emt 0:00:09]} 33. Ra7 {[%emt 0:00:08]} Rc6 {[%emt 0:00:33]} 34. Rh7 {[%emt 0:01:11]} Rc8 {[%emt 0:02:27]} 1/2-1/2